[Event "MCR rapid mládeže 2023 U16"]
[Site "Harachov, Czech Republic"]
[Date "2023.09.09"]
[Round "5.12"]
[White "Nguyen, Nhat Minh Thu"]
[Black "Kaplanova, Dominika"]
[Result "1-0"]
[TimeControl "20min+5s/move"]
[WhiteElo "1405"]
[BlackElo "1461"]

1. e4 {[%clk 00:20:09]} c6 {[%clk 00:20:06]} {[%emt 00:00:05]} 2. d4 {[%clk
00:20:12]} {[%emt 00:00:01]} d5 {[%clk 00:20:10]} {[%emt 00:00:02]} 3. exd5
{[%clk 00:20:16]} {[%emt 00:00:02]} cxd5 {[%clk 00:20:13]} {[%emt 00:00:01]} 4.
Be3 {[%clk 00:20:13]} {[%emt 00:00:07]} Nc6 {[%clk 00:20:08]} {[%emt 00:00:10]}
5. c4 {[%clk 00:20:00]} {[%emt 00:00:18]} Nf6 {[%clk 00:19:52]} {[%emt
00:00:21]} 6. Nc3 {[%clk 00:19:52]} {[%emt 00:00:13]} e6 {[%clk 00:18:52]}
{[%emt 00:01:05]} 7. a3 {[%clk 00:19:51]} {[%emt 00:00:06]} Be7 {[%clk
00:18:20]} {[%emt 00:00:36]} 8. Nf3 {[%clk 00:19:51]} {[%emt 00:00:05]} O-O
{[%clk 00:18:11]} {[%emt 00:00:15]} 9. Be2 {[%clk 00:19:54]} {[%emt 00:00:02]}
b6 {[%clk 00:17:23]} {[%emt 00:00:52]} 10. O-O {[%clk 00:19:39]} {[%emt
00:00:20]} dxc4 {[%clk 00:16:43]} {[%emt 00:00:46]} 11. Bxc4 {[%clk 00:19:37]}
{[%emt 00:00:06]} Bb7 {[%clk 00:16:33]} {[%emt 00:00:15]} 12. b4 {[%clk
00:18:28]} {[%emt 00:01:15]} Rc8 {[%clk 00:15:53]} {[%emt 00:00:44]} 13. Qe2
{[%clk 00:17:02]} {[%emt 00:01:31]} Qc7 {[%clk 00:14:08]} {[%emt 00:01:51]} 14.
Nd2 {[%clk 00:14:30]} {[%emt 00:02:36]} Rfd8 {[%clk 00:13:29]} {[%emt
00:00:45]} 15. Rac1 {[%clk 00:14:27]} {[%emt 00:00:08]} Nxd4 {[%clk 00:11:47]}
{[%emt 00:01:47]} 16. Bxd4 {[%clk 00:13:31]} {[%emt 00:01:01]} Rxd4 {[%clk
00:11:44]} {[%emt 00:00:08]} 17. Nb5 {[%clk 00:13:12]} {[%emt 00:00:24]} Qc6
{[%clk 00:08:37]} {[%emt 00:03:11]} 18. f3 {[%clk 00:10:54]} {[%emt 00:02:23]}
Rxc4 {[%clk 00:06:35]} {[%emt 00:02:08]} 19. Rxc4 {[%clk 00:10:20]} {[%emt
00:00:39]} Qd7 {[%clk 00:05:37]} {[%emt 00:01:02]} 20. Rxc8+ {[%clk 00:10:00]}
{[%emt 00:00:25]} Bxc8 {[%clk 00:05:34]} {[%emt 00:00:08]} 21. Rc1 {[%clk
00:05:25]} {[%emt 00:04:40]} Ba6 {[%clk 00:04:17]} {[%emt 00:01:22]} 22. a4
{[%clk 00:03:25]} {[%emt 00:02:04]} Bxb4 {[%clk 00:03:48]} {[%emt 00:00:34]} 23.
Ne4 {[%clk 00:02:49]} {[%emt 00:00:41]} Nxe4 {[%clk 00:03:03]} {[%emt
00:00:50]} 24. fxe4 {[%clk 00:01:55]} {[%emt 00:00:58]} Bc5+ {[%clk 00:02:45]}
{[%emt 00:00:24]} 25. Kh1 {[%clk 00:01:50]} {[%emt 00:00:10]} Kf8 {[%clk
00:00:46]} {[%emt 00:02:04]} 26. Rd1 {[%clk 00:01:30]} {[%emt 00:00:25]} Bxb5
{[%clk 00:00:44]} {[%emt 00:00:08]} 27. axb5 {[%clk 00:01:31]} {[%emt
00:00:04]} Qb7 {[%clk 00:00:36]} {[%emt 00:00:12]} 28. Qd3 {[%clk 00:01:25]}
{[%emt 00:00:12]} Ke7 {[%clk 00:00:20]} {[%emt 00:00:21]} 29. Qd8# {[%clk
00:01:28]} {[%emt 00:00:02]} 1-0

[Event "MCR rapid mládeže 2023 U16"]
[Site "Harachov, Czech Republic"]
[Date "2023.09.09"]
[Round "5.13"]
[White "Slivova, Linda"]
[Black "Lackova, Ludmila"]
[Result "1-0"]
[TimeControl "20min+5s/move"]
[WhiteElo "1386"]
[BlackElo "1479"]

1. e4 {[%clk 00:20:08]} {[%emt 00:00:02]} e5 {[%clk 00:20:09]} {[%emt
00:00:01]} 2. Nc3 {[%clk 00:20:11]} {[%emt 00:00:02]} Nc6 {[%clk 00:20:04]}
{[%emt 00:00:10]} 3. g3 {[%clk 00:20:14]} {[%emt 00:00:02]} Bc5 {[%clk
00:19:25]} {[%emt 00:00:43]} 4. Bg2 {[%clk 00:19:32]} {[%emt 00:00:47]} d6
{[%clk 00:19:22]} {[%emt 00:00:07]} 5. Nge2 {[%clk 00:19:24]} {[%emt 00:00:14]}
Nf6 {[%clk 00:18:55]} {[%emt 00:00:32]} 6. Na4 {[%clk 00:19:24]} {[%emt
00:00:06]} Bb6 {[%clk 00:18:54]} {[%emt 00:00:06]} 7. Nxb6 {[%clk 00:19:27]}
{[%emt 00:00:03]} axb6 {[%clk 00:18:57]} {[%emt 00:00:01]} 8. d3 {[%clk
00:19:25]} {[%emt 00:00:06]} h6 {[%clk 00:18:59]} {[%emt 00:00:03]} 9. O-O
{[%clk 00:19:24]} {[%emt 00:00:06]} Be6 {[%clk 00:19:02]} {[%emt 00:00:03]} 10.
f4 {[%clk 00:18:35]} {[%emt 00:00:53]} Bg4 {[%clk 00:17:43]} {[%emt 00:01:20]}
11. h3 {[%clk 00:17:02]} {[%emt 00:01:42]} Bxe2 {[%clk 00:17:40]} {[%emt
00:00:09]} 12. Qxe2 {[%clk 00:17:04]} {[%emt 00:00:02]} Nd4 {[%clk 00:17:13]}
{[%emt 00:00:32]} 13. Qf2 {[%clk 00:15:53]} {[%emt 00:01:17]} Qe7 {[%clk
00:16:04]} {[%emt 00:01:13]} 14. c3 {[%clk 00:15:23]} {[%emt 00:00:36]} Nc6
{[%clk 00:16:03]} {[%emt 00:00:05]} 15. Bd2 {[%clk 00:13:58]} {[%emt 00:01:30]}
Nd7 {[%clk 00:14:59]} {[%emt 00:01:09]} 16. fxe5 {[%clk 00:11:46]} {[%emt
00:02:17]} Ndxe5 {[%clk 00:14:32]} {[%emt 00:00:32]} 17. d4 {[%clk 00:11:16]}
{[%emt 00:00:35]} Nd7 {[%clk 00:10:58]} {[%emt 00:03:38]} 18. Kh2 {[%clk
00:07:34]} {[%emt 00:03:48]} O-O {[%clk 00:10:13]} {[%emt 00:00:50]} 19. Qf5
{[%clk 00:06:41]} {[%emt 00:00:58]} Qe6 {[%clk 00:08:40]} {[%emt 00:01:35]} 20.
Qf4 {[%clk 00:05:56]} {[%emt 00:00:54]} Nf6 {[%clk 00:06:20]} {[%emt 00:02:26]}
21. d5 {[%clk 00:05:13]} {[%emt 00:00:48]} Qe5 {[%clk 00:04:20]} {[%emt
00:02:04]} 22. dxc6 {[%clk 00:05:08]} {[%emt 00:00:10]} Qxf4 {[%clk 00:04:21]}
{[%emt 00:00:05]} 23. Bxf4 {[%clk 00:05:01]} {[%emt 00:00:12]} bxc6 {[%clk
00:04:24]} {[%emt 00:00:02]} 24. Bxh6 {[%clk 00:04:40]} {[%emt 00:00:26]} Nxe4
{[%clk 00:04:19]} {[%emt 00:00:10]} 25. Bxe4 {[%clk 00:04:32]} {[%emt
00:00:13]} gxh6 {[%clk 00:04:22]} {[%emt 00:00:01]} 26. Bxc6 {[%clk 00:04:30]}
{[%emt 00:00:07]} Ra5 {[%clk 00:03:53]} {[%emt 00:00:35]} 27. a3 {[%clk
00:03:57]} {[%emt 00:00:38]} Rc5 {[%clk 00:03:49]} {[%emt 00:00:09]} 28. Be4
{[%clk 00:03:56]} {[%emt 00:00:04]} Re8 {[%clk 00:03:52]} {[%emt 00:00:02]} 29.
Bf3 {[%clk 00:03:05]} {[%emt 00:00:57]} Rb5 {[%clk 00:03:41]} {[%emt 00:00:16]}
30. Rf2 {[%clk 00:02:52]} {[%emt 00:00:18]} Rbe5 {[%clk 00:03:42]} {[%emt
00:00:04]} 31. Raf1 {[%clk 00:02:48]} {[%emt 00:00:08]} Kg7 {[%clk 00:03:33]}
{[%emt 00:00:14]} 32. c4 {[%clk 00:02:25]} {[%emt 00:00:28]} R8e7 {[%clk
00:03:30]} {[%emt 00:00:09]} 33. Bd5 {[%clk 00:02:26]} {[%emt 00:00:04]} f5
{[%clk 00:03:29]} {[%emt 00:00:05]} 34. Rxf5 {[%clk 00:02:22]} {[%emt
00:00:10]} Rxf5 {[%clk 00:03:28]} {[%emt 00:00:06]} 35. Rxf5 {[%clk 00:02:24]}
{[%emt 00:00:03]} Re2+ {[%clk 00:03:31]} {[%emt 00:00:01]} 36. Kg1 {[%clk
00:02:14]} {[%emt 00:00:15]} Rxb2 {[%clk 00:03:34]} {[%emt 00:00:03]} 37. Rf2
{[%clk 00:01:41]} {[%emt 00:00:37]} Rb1+ {[%clk 00:03:36]} {[%emt 00:00:03]} 38.
Kg2 {[%clk 00:01:41]} {[%emt 00:00:06]} Ra1 {[%clk 00:03:39]} {[%emt 00:00:02]}
39. Rf3 {[%clk 00:01:31]} {[%emt 00:00:14]} Ra2+ {[%clk 00:03:43]} {[%emt
00:00:02]} 40. Kf1 {[%clk 00:01:34]} {[%emt 00:00:02]} Ra1+ {[%clk 00:03:47]}
{[%emt 00:00:01]} 41. Ke2 {[%clk 00:01:38]} Rb1 {[%clk 00:03:45]} {[%emt
00:00:07]} 42. Rd3 {[%clk 00:00:51]} {[%emt 00:00:52]} b5 {[%clk 00:03:47]}
{[%emt 00:00:03]} 43. cxb5 {[%clk 00:00:50]} {[%emt 00:00:06]} Rxb5 {[%clk
00:03:50]} {[%emt 00:00:01]} 44. Bc4 {[%clk 00:00:37]} {[%emt 00:00:18]} Rc5
{[%clk 00:03:51]} {[%emt 00:00:04]} 45. Rd4 {[%clk 00:00:36]} {[%emt 00:00:06]}
Ra5 {[%clk 00:03:44]} {[%emt 00:00:12]} 46. Rd3 {[%clk 00:00:39]} {[%emt
00:00:02]} Rc5 {[%clk 00:03:47]} {[%emt 00:00:01]} 47. Bb3 {[%clk 00:00:42]}
{[%emt 00:00:02]} Rh5 {[%clk 00:03:45]} {[%emt 00:00:07]} 48. h4 {[%clk
00:00:42]} {[%emt 00:00:06]} Rb5 {[%clk 00:03:44]} {[%emt 00:00:06]} 49. a4
{[%clk 00:00:41]} {[%emt 00:00:06]} Rb4 {[%clk 00:03:47]} {[%emt 00:00:02]} 50.
a5 {[%clk 00:00:19]} {[%emt 00:00:27]} Rb5 {[%clk 00:03:41]} {[%emt 00:00:09]}
51. a6 {[%clk 00:00:18]} {[%emt 00:00:08]} Ra5 {[%clk 00:03:41]} {[%emt
00:00:04]} 52. Bc4 {[%clk 00:00:22]} {[%emt 00:00:03]} h5 {[%clk 00:03:31]}
{[%emt 00:00:14]} 53. Rd5 {[%clk 00:00:18]} {[%emt 00:00:09]} Ra3 {[%clk
00:03:24]} {[%emt 00:00:12]} 54. Rd3 {[%clk 00:00:10]} {[%emt 00:00:13]} Ra4
{[%clk 00:03:26]} {[%emt 00:00:03]} 55. Rc3 {[%clk 00:00:13]} {[%emt 00:00:03]}
c6 {[%clk 00:03:22]} {[%emt 00:00:10]} 56. Rc2 {[%clk 00:00:10]} {[%emt
00:00:08]} d5 {[%clk 00:03:14]} {[%emt 00:00:12]} 57. Bd3 {[%clk 00:00:14]}
{[%emt 00:00:01]} Ra5 {[%clk 00:03:08]} {[%emt 00:00:11]} 58. Rxc6 {[%clk
00:00:15]} {[%emt 00:00:04]} Ra2+ {[%clk 00:03:10]} {[%emt 00:00:03]} 59. Rc2
{[%clk 00:00:18]} {[%emt 00:00:02]} Ra3 {[%clk 00:03:10]} {[%emt 00:00:05]} 60.
Kd2 {[%clk 00:00:14]} {[%emt 00:00:09]} Kf6 {[%clk 00:03:11]} {[%emt 00:00:04]}
61. Rc6+ {[%clk 00:00:11]} {[%emt 00:00:09]} Ke5 {[%clk 00:03:13]} {[%emt
00:00:02]} 62. Rc7 {[%clk 00:00:09]} {[%emt 00:00:07]} Kd4 {[%clk 00:03:16]}
{[%emt 00:00:03]} 63. Bf1 {[%clk 00:00:10]} {[%emt 00:00:04]} Ra2+ {[%clk
00:03:18]} {[%emt 00:00:02]} 64. Ke1 {[%clk 00:00:10]} {[%emt 00:00:03]} Ra1+
{[%clk 00:03:22]} {[%emt 00:00:03]} 65. Kf2 {[%clk 00:00:14]} {[%emt 00:00:01]}
Ra2+ {[%clk 00:03:24]} {[%emt 00:00:02]} 66. Kf3 {[%clk 00:00:16]} {[%emt
00:00:03]} Ke5 {[%clk 00:02:47]} {[%emt 00:00:43]} 67. Re7+ {[%clk 00:00:20]}
{[%emt 00:00:01]} Kd6 {[%clk 00:02:50]} {[%emt 00:00:01]} 68. Rh7 {[%clk
00:00:14]} {[%emt 00:00:10]} Ra3+ {[%clk 00:02:50]} {[%emt 00:00:07]} 69. Kf4
{[%clk 00:00:17]} {[%emt 00:00:02]} Ra4+ {[%clk 00:02:47]} {[%emt 00:00:07]} 70.
Kg5 {[%clk 00:00:16]} {[%emt 00:00:06]} Rg4+ {[%clk 00:02:51]} {[%emt
00:00:01]} 71. Kxh5 {[%clk 00:00:15]} {[%emt 00:00:06]} Rxg3 {[%clk 00:02:54]}
{[%emt 00:00:02]} 72. a7 {[%clk 00:00:12]} {[%emt 00:00:08]} Ra3 {[%clk
00:02:58]} {[%emt 00:00:02]} 73. Bh3 {[%clk 00:00:13]} {[%emt 00:00:04]} Kc6
{[%clk 00:02:52]} {[%emt 00:00:11]} 74. Bd7+ {[%clk 00:00:09]} {[%emt
00:00:08]} Kb6 {[%clk 00:02:54]} {[%emt 00:00:03]} 75. Be6 {[%clk 00:00:07]}
{[%emt 00:00:07]} d4 {[%clk 00:02:45]} {[%emt 00:00:14]} 76. Bd5 {[%clk
00:00:09]} {[%emt 00:00:04]} Rxa7 {[%clk 00:02:48]} {[%emt 00:00:02]} 77. Rxa7
{[%clk 00:00:10]} {[%emt 00:00:04]} Kxa7 {[%clk 00:02:51]} {[%emt 00:00:01]} 78.
Bc4 {[%clk 00:00:11]} {[%emt 00:00:04]} Kb6 {[%clk 00:02:55]} 79. Kg5 {[%clk
00:00:12]} {[%emt 00:00:04]} Kc5 {[%clk 00:02:57]} {[%emt 00:00:03]} 80. Bf1
{[%clk 00:00:15]} {[%emt 00:00:02]} Kd6 {[%clk 00:03:00]} {[%emt 00:00:03]} 81.
Kg6 {[%clk 00:00:18]} {[%emt 00:00:02]} Ke7 {[%clk 00:02:57]} {[%emt 00:00:07]}
82. Kg7 {[%clk 00:00:22]} Ke6 {[%clk 00:02:58]} {[%emt 00:00:05]} 83. h5 {[%clk
00:00:25]} Ke5 {[%clk 00:03:02]} {[%emt 00:00:01]} 84. h6 {[%clk 00:00:29]} Ke4
{[%clk 00:03:07]} 85. h7 {[%clk 00:00:34]} {[%emt 00:00:01]} d3 {[%clk
00:03:11]} 86. Bxd3+ {[%clk 00:00:38]} {[%emt 00:00:02]} Kxd3 {[%clk 00:03:15]}
87. h8=Q {[%clk 00:00:39]} {[%emt 00:00:03]} Kd4 {[%clk 00:03:20]} 88. Qh5
{[%clk 00:00:42]} {[%emt 00:00:03]} Ke4 {[%clk 00:03:23]} 89. Kf6 {[%clk
00:00:46]} {[%emt 00:00:03]} Kd4 {[%clk 00:03:27]} {[%emt 00:00:01]} 90. Qe5+
{[%clk 00:00:50]} {[%emt 00:00:01]} Kc4 {[%clk 00:03:31]} {[%emt 00:00:01]} 91.
Qd6 {[%clk 00:00:52]} {[%emt 00:00:02]} Kb5 {[%clk 00:03:35]} {[%emt 00:00:01]}
92. Qc7 {[%clk 00:00:56]} {[%emt 00:00:02]} Ka6 {[%clk 00:03:39]} {[%emt
00:00:01]} 93. Qb8 {[%clk 00:01:00]} {[%emt 00:00:01]} Ka5 {[%clk 00:03:43]}
{[%emt 00:00:01]} 94. Ke5 {[%clk 00:01:03]} {[%emt 00:00:01]} Ka4 {[%clk
00:03:48]} 95. Kd4 {[%clk 00:01:07]} {[%emt 00:00:01]} Ka3 {[%clk 00:03:52]}
{[%emt 00:00:01]} 96. Kc3 {[%clk 00:01:10]} {[%emt 00:00:01]} Ka2 {[%clk
00:03:56]} 97. Qb2# {[%clk 00:01:14]} {[%emt 00:00:01]} 1-0

[Event "MCR rapid mládeže 2023 U16"]
[Site "Harachov, Czech Republic"]
[Date "2023.09.09"]
[Round "5.14"]
[White "Bartova, Hana"]
[Black "Vaclavkova, Klara"]
[Result "1-0"]
[TimeControl "20min+5s/move"]
[WhiteElo "1389"]
[BlackElo "1092"]

1. e4 {[%clk 00:20:08]} {[%emt 00:00:01]} e5 {[%clk 00:20:09]} 2. Nf3 {[%clk
00:20:10]} {[%emt 00:00:03]} Nc6 {[%clk 00:20:14]} {[%emt 00:00:02]} 3. Bc4
{[%clk 00:20:14]} {[%emt 00:00:02]} Nf6 {[%clk 00:20:14]} {[%emt 00:00:04]} 4.
Ng5 {[%clk 00:20:04]} {[%emt 00:00:15]} Bc5 {[%clk 00:20:18]} {[%emt 00:00:02]}
5. Nxf7 {[%clk 00:19:30]} {[%emt 00:00:39]} Bxf2+ {[%clk 00:20:21]} {[%emt
00:00:02]} 6. Kf1 {[%clk 00:09:02]} {[%emt 00:10:32]} Qe7 {[%clk 00:20:10]}
{[%emt 00:00:16]} 7. Nxh8 {[%clk 00:07:00]} {[%emt 00:02:07]} Nxe4 {[%clk
00:20:13]} {[%emt 00:00:02]} 8. Qf3 {[%clk 00:06:04]} {[%emt 00:01:01]} d5
{[%clk 00:15:13]} {[%emt 00:05:05]} 9. Bxd5 {[%clk 00:04:32]} {[%emt 00:01:37]}
Nf6 {[%clk 00:09:27]} {[%emt 00:05:51]} 10. Bxc6+ {[%clk 00:04:12]} {[%emt
00:00:26]} bxc6 {[%clk 00:09:27]} {[%emt 00:00:05]} 11. Qxc6+ {[%clk 00:03:21]}
{[%emt 00:00:56]} Kd8 {[%clk 00:08:48]} {[%emt 00:00:42]} 12. Qxa8 {[%clk
00:02:15]} {[%emt 00:01:12]} Kd7 {[%clk 00:08:52]} {[%emt 00:00:01]} 13. Qf3
{[%clk 00:01:59]} {[%emt 00:00:16]} Ba6+ {[%clk 00:08:52]} {[%emt 00:00:10]} 14.
d3 {[%clk 00:01:48]} {[%emt 00:00:15]} e4 {[%clk 00:08:17]} {[%emt 00:00:41]}
15. Qe2 {[%clk 00:01:23]} {[%emt 00:00:30]} Qd6 {[%clk 00:07:11]} {[%emt
00:01:11]} 16. Kxf2 {[%clk 00:00:42]} {[%emt 00:00:46]} Qc5+ {[%emt 00:00:10]}
17. Be3 {[%clk 00:00:44]} Qf5+ {[%clk 00:07:12]} {[%emt 00:00:01]} 18. Ke1
{[%clk 00:00:46]} {[%emt 00:00:03]} Qa5+ {[%clk 00:06:57]} {[%emt 00:00:20]} 19.
Nc3 {[%clk 00:00:43]} {[%emt 00:00:07]} exd3 {[%clk 00:06:46]} {[%emt
00:00:18]} 20. cxd3 {[%clk 00:00:46]} {[%emt 00:00:01]} Nd5 {[%clk 00:06:16]}
{[%emt 00:00:35]} 21. Bd2 {[%clk 00:00:42]} {[%emt 00:00:09]} Nb4 {[%clk
00:05:47]} {[%emt 00:00:33]} 22. Qg4+ {[%clk 00:00:38]} {[%emt 00:00:10]} Kc6
{[%clk 00:05:40]} {[%emt 00:00:10]} 23. Qe4+ {[%clk 00:00:37]} {[%emt
00:00:07]} Kb6 {[%clk 00:05:38]} {[%emt 00:00:08]} 24. Be3+ {[%clk 00:00:40]}
{[%emt 00:00:02]} Qc5 {[%clk 00:05:26]} {[%emt 00:00:18]} 25. Bxc5+ {[%clk
00:00:43]} {[%emt 00:00:02]} Kxc5 {[%clk 00:05:30]} 26. Qe5+ {[%clk 00:00:46]}
{[%emt 00:00:02]} Kc6 {[%clk 00:05:34]} 27. Qd5+ {[%emt 00:00:06]} Kb6 {[%clk
00:05:36]} 28. Qd4+ {[%clk 00:00:47]} {[%emt 00:00:06]} Ka5 {[%clk 00:05:39]}
{[%emt 00:00:02]} 29. Qxb4+ {[%clk 00:00:51]} {[%emt 00:00:02]} Kxb4 {[%clk
00:05:43]} {[%emt 00:00:01]} 30. Kd2 {[%clk 00:00:52]} {[%emt 00:00:03]} c5
{[%clk 00:05:46]} {[%emt 00:00:02]} 31. Rae1 {[%clk 00:00:56]} {[%emt
00:00:01]} Ka5 {[%clk 00:05:48]} {[%emt 00:00:03]} 32. Re5 {[%clk 00:00:58]}
{[%emt 00:00:03]} Kb6 {[%clk 00:05:52]} {[%emt 00:00:01]} 33. Rhe1 {[%clk
00:01:02]} {[%emt 00:00:01]} Ka5 {[%clk 00:05:51]} {[%emt 00:00:06]} 34. Re6
{[%clk 00:01:04]} {[%emt 00:00:03]} Bb7 {[%clk 00:05:47]} {[%emt 00:00:09]} 35.
R1e5 {[%clk 00:01:05]} {[%emt 00:00:03]} Bxg2 {[%clk 00:05:42]} {[%emt
00:00:11]} 36. a3 {[%clk 00:01:09]} {[%emt 00:00:01]} a6 {[%clk 00:05:28]}
{[%emt 00:00:19]} 37. Rxc5# {[%clk 00:01:12]} {[%emt 00:00:02]} 1-0

[Event "MCR rapid mládeže 2023 U16"]
[Site "Harachov, Czech Republic"]
[Date "2023.09.09"]
[Round "5.15"]
[White "Mik, Tomas"]
[Black "Bara, Jan"]
[Result "1-0"]
[TimeControl "20min+5s/move"]
[WhiteElo "1802"]
[BlackElo "1823"]

1. e4 {[%clk 00:20:09]} c5 {[%clk 00:18:32]} {[%emt 00:01:39]} 2. Nf3 {[%clk
00:20:09]} {[%emt 00:00:04]} d6 {[%clk 00:18:35]} {[%emt 00:00:02]} 3. d4
{[%clk 00:20:13]} {[%emt 00:00:01]} cxd4 {[%clk 00:18:39]} {[%emt 00:00:01]} 4.
Nxd4 {[%clk 00:20:17]} {[%emt 00:00:02]} Nf6 {[%clk 00:18:44]} 5. Nc3 {[%clk
00:20:20]} {[%emt 00:00:02]} g6 {[%clk 00:18:48]} 6. Be3 {[%clk 00:20:21]}
{[%emt 00:00:04]} Bg7 {[%clk 00:18:52]} {[%emt 00:00:01]} 7. f3 {[%clk
00:20:24]} {[%emt 00:00:02]} O-O {[%clk 00:18:55]} {[%emt 00:00:02]} 8. Bc4
{[%clk 00:20:28]} Nc6 {[%clk 00:18:59]} {[%emt 00:00:01]} 9. Qd2 {[%clk
00:20:32]} {[%emt 00:00:01]} Nxd4 {[%clk 00:19:03]} {[%emt 00:00:01]} 10. Bxd4
{[%clk 00:20:34]} {[%emt 00:00:03]} Be6 {[%clk 00:19:07]} 11. Bxe6 {[%clk
00:20:30]} {[%emt 00:00:08]} fxe6 {[%clk 00:19:11]} {[%emt 00:00:01]} 12. O-O-O
{[%clk 00:20:18]} {[%emt 00:00:17]} Qa5 {[%clk 00:18:53]} {[%emt 00:00:24]} 13.
Kb1 {[%clk 00:20:03]} {[%emt 00:00:19]} b5 {[%clk 00:18:33]} {[%emt 00:00:25]}
14. h4 {[%clk 00:17:57]} {[%emt 00:02:11]} b4 {[%clk 00:17:58]} {[%emt
00:00:41]} 15. Ne2 {[%clk 00:17:50]} {[%emt 00:00:11]} Qb5 {[%clk 00:16:43]}
{[%emt 00:01:20]} 16. g4 {[%clk 00:15:58]} {[%emt 00:01:57]} a5 {[%clk
00:15:27]} {[%emt 00:01:22]} 17. h5 {[%clk 00:15:35]} {[%emt 00:00:28]} a4
{[%clk 00:13:54]} {[%emt 00:01:38]} 18. hxg6 {[%clk 00:14:10]} {[%emt
00:01:30]} hxg6 {[%clk 00:13:56]} {[%emt 00:00:03]} 19. Be3 {[%clk 00:12:12]}
{[%emt 00:02:03]} b3 {[%clk 00:11:38]} {[%emt 00:02:23]} 20. cxb3 {[%clk
00:11:29]} {[%emt 00:00:49]} axb3 {[%clk 00:11:22]} {[%emt 00:00:22]} 21. a3
{[%clk 00:11:31]} {[%emt 00:00:02]} Kf7 {[%clk 00:06:13]} {[%emt 00:05:14]} 22.
Nd4 {[%clk 00:09:41]} {[%emt 00:01:54]} Qb7 {[%clk 00:04:42]} {[%emt 00:01:32]}
23. Bh6 {[%clk 00:09:07]} {[%emt 00:00:44]} Rg8 {[%clk 00:03:07]} {[%emt
00:01:39]} 24. g5 {[%clk 00:05:34]} {[%emt 00:03:38]} Nh5 {[%clk 00:02:05]}
{[%emt 00:01:08]} 25. Bxg7 {[%clk 00:02:43]} {[%emt 00:02:56]} Rxg7 {[%clk
00:02:02]} {[%emt 00:00:08]} 26. Qh2 {[%clk 00:01:58]} {[%emt 00:00:49]} e5
{[%clk 00:01:27]} {[%emt 00:00:40]} 27. Ne2 {[%clk 00:01:47]} {[%emt 00:00:16]}
Rc8 {[%clk 00:00:49]} {[%emt 00:00:44]} 28. Qh3 {[%clk 00:01:09]} {[%emt
00:00:42]} Rc2 {[%clk 00:00:40]} {[%emt 00:00:15]} 29. Nc3 {[%clk 00:01:00]}
{[%emt 00:00:14]} Nf4 {[%clk 00:00:42]} {[%emt 00:00:02]} 30. Qh8 {[%clk
00:00:58]} {[%emt 00:00:07]} Qa6 {[%clk 00:00:24]} {[%emt 00:00:23]} 31. Rh7
{[%clk 00:00:43]} {[%emt 00:00:20]} Rxh7 {[%clk 00:00:19]} {[%emt 00:00:10]} 32.
Qxh7+ {[%clk 00:00:47]} {[%emt 00:00:01]} Ke8 {[%clk 00:00:22]} {[%emt
00:00:02]} 33. Qg8+ {[%clk 00:00:50]} {[%emt 00:00:03]} Kd7 {[%clk 00:00:25]}
{[%emt 00:00:01]} 34. Qxb3 {[%clk 00:00:52]} {[%emt 00:00:04]} Rh2 {[%clk
00:00:22]} {[%emt 00:00:07]} 35. Nd5 {[%clk 00:00:17]} {[%emt 00:00:41]} Nxd5
{[%clk 00:00:23]} {[%emt 00:00:03]} 36. Qxd5 {[%clk 00:00:17]} {[%emt
00:00:05]} Qb6 {[%clk 00:00:25]} {[%emt 00:00:03]} 37. Rd2 {[%clk 00:00:18]}
{[%emt 00:00:04]} Rh1+ {[%clk 00:00:26]} {[%emt 00:00:04]} 38. Ka2 {[%clk
00:00:22]} {[%emt 00:00:02]} Kc7 {[%clk 00:00:19]} {[%emt 00:00:11]} 39. Rc2+
{[%clk 00:00:17]} {[%emt 00:00:10]} Kd7 {[%clk 00:00:22]} {[%emt 00:00:02]} 40.
Qg8 {[%clk 00:00:19]} {[%emt 00:00:03]} Qb7 {[%clk 00:00:21]} {[%emt 00:00:04]}
41. Qxg6 {[%clk 00:00:17]} {[%emt 00:00:09]} Rh8 {[%clk 00:00:12]} {[%emt
00:00:13]} 42. Qf5+ {[%clk 00:00:18]} {[%emt 00:00:05]} Kd8 {[%clk 00:00:14]}
{[%emt 00:00:02]} 43. g6 {[%clk 00:00:20]} {[%emt 00:00:05]} Qd7 {[%clk
00:00:13]} {[%emt 00:00:04]} 44. g7 {[%clk 00:00:17]} {[%emt 00:00:09]} Rg8
{[%clk 00:00:16]} {[%emt 00:00:03]} 45. Qf7 {[%clk 00:00:17]} {[%emt 00:00:05]}
Qe8 {[%clk 00:00:16]} {[%emt 00:00:03]} 46. Qe6 {[%clk 00:00:20]} {[%emt
00:00:03]} 1-0